fUSD/lending_fUSD_20250623
["ID","MTS","AMOUNT","RATE_DAILY","PERIOD"]
[367107246,1750662645806,-617.7,0.00027397,3]
[367107247,1750662645815,-490.0,0.00027397,3]
[367107250,1750662645827,-490.0,0.00027397,3]
[367107251,1750662645837,-490.0,0.00027397,3]
[367107253,1750662645848,-490.0,0.00027397,3]
[367107255,1750662645857,-826.8,0.00027397,3]
[367107257,1750662645867,-490.0,0.00027397,3]
[367107259,1750662645876,-490.0,0.00027397,3]
[367107261,1750662645886,-490.0,0.00027397,3]
[367107263,1750662645895,-490.0,0.00027397,3]
[367107265,1750662645905,-490.0,0.00027397,3]
[367107267,1750662645914,-490.0,0.00027397,3]
[367107269,1750662645923,-490.0,0.00027397,3]
[367107271,1750662645933,-490.0,0.00027397,3]
[367107273,1750662645942,-155.77234936,0.00027397,3]
[367107275,1750662645952,-490.0,0.00027397,3]
[367107277,1750662645961,-490.0,0.00027397,3]
[367107279,1750662645971,-490.0,0.00027397,3]
[367107281,1750662645980,-626.46,0.00027397,3]
[367107283,1750662645989,-490.0,0.00027397,3]
[367107285,1750662645998,-490.0,0.00027397,3]
[367107287,1750662646008,-490.0,0.00027397,3]
[367107289,1750662646017,-490.0,0.00027397,3]
[367107291,1750662646026,-490.0,0.00027397,3]
[367107293,1750662646036,-490.0,0.00027397,3]
[367107295,1750662646045,-490.0,0.00027397,3]
[367107297,1750662646056,-490.0,0.00027397,3]
[367107299,1750662646065,-490.0,0.00027397,3]
[367107300,1750662646074,-490.0,0.00027397,3]
[367107302,1750662646083,-841.55,0.00027397,3]
[367107304,1750662646093,-490.0,0.00027397,3]
[367107307,1750662646103,-490.0,0.00027397,3]
[367107308,1750662646114,-625.27,0.00027397,3]
[367107310,1750662646123,-490.0,0.00027397,3]
[367107312,1750662646133,-1584.78,0.00027397,3]
[367107314,1750662646143,-490.0,0.00027397,3]
[367107316,1750662646152,-490.0,0.00027397,3]
[367107318,1750662646161,-490.0,0.00027397,3]
[367107320,1750662646171,-490.0,0.00027397,3]
[367107322,1750662646180,-490.0,0.00027397,3]
[367107324,1750662646190,-286.80100468,0.00027397,3]
[367107326,1750662646199,-1089.25,0.00027397,3]
[367107328,1750662646207,-914.26,0.00027397,3]
[367107330,1750662646217,-777.39,0.00027397,3]
[367107332,1750662646226,-444.77945503,0.00027397,3]
[367107334,1750662646236,-667.3,0.00027397,3]
[367107336,1750662646245,-563.6,0.00027397,3]
[367107338,1750662646254,-1172.55,0.00027397,3]
[367107340,1750662646264,-490.0,0.00027397,3]
[367107342,1750662646274,-490.0,0.00027397,3]
[367107344,1750662646284,-857.69,0.00027397,3]
[367107346,1750662646293,-601.26,0.00027397,3]
[367107347,1750662646303,-490.0,0.00027397,3]
[367107349,1750662646312,-490.0,0.00027397,3]
[367107351,1750662646322,-153.552939,0.00027397,3]
[367107353,1750662646331,-1486.14,0.00027397,3]
[367107355,1750662646340,-654.18,0.00027397,3]
[367107357,1750662646350,-226.57331414,0.00027397,3]
[367107359,1750662646360,-491.40167238,0.00027397,3]
[367107361,1750662646369,-641.56,0.00027397,3]
[367107363,1750662646379,-2328.1,0.00027397,3]
[367107365,1750662646388,-267.83495167,0.00027397,3]
[367107367,1750662646398,-350.40954084,0.00027397,3]
[367107369,1750662646407,-490.0,0.00027397,3]
[367107371,1750662646417,-1714.75,0.00027397,3]
[367107373,1750662646427,-490.0,0.00027397,3]
[367107375,1750662646436,-490.0,0.00027397,3]
[367107377,1750662646445,-490.0,0.00027397,3]
[367107379,1750662646455,-834.55,0.00027397,3]
[367107381,1750662646464,-2984.61,0.00027397,3]
[367107382,1750662646473,-579.07,0.00027397,3]
[367107384,1750662646483,-1666.5,0.00027397,3]
[367107386,1750662646493,-490.0,0.00027397,2]
[367107388,1750662646504,-568.10045589,0.00027397,3]
[367107390,1750662646515,-490.0,0.00027397,3]
[367107392,1750662646525,-774.87,0.00027397,3]
[367107394,1750662646534,-504.43852171,0.00027397,3]
[367107396,1750662646543,-490.0,0.00027397,3]
[367107398,1750662646553,-490.0,0.00027397,3]
[367107400,1750662646563,-198.016965,0.00027397,3]
[367107402,1750662646572,-490.0,0.00027397,3]
[367107404,1750662646581,-490.0,0.00027397,3]
[367107406,1750662646590,-490.0,0.00027397,3]
[367107408,1750662646599,-490.0,0.00027397,3]
[367107410,1750662646609,-490.0,0.00027397,3]
[367107412,1750662646618,-523.64,0.00027397,3]
[367107414,1750662646628,-1685.1,0.00027397,3]
[367107416,1750662646638,-490.80819064,0.00027397,3]
[367107418,1750662646647,-231.67949151,0.00027397,3]
[367107420,1750662646656,-685.83,0.00027397,3]
[367107422,1750662646665,-490.0,0.00027397,3]
[367107423,1750662646675,-845.32,0.00027397,3]
[367107425,1750662646684,-490.0,0.00027397,3]
[367107427,1750662646693,-490.0,0.00027397,3]
[367107429,1750662646702,-490.0,0.00027397,3]
[367107431,1750662646712,-1003.013708,0.00027397,3]
[367107433,1750662646721,-490.0,0.00027397,3]
[367107435,1750662646731,-490.0,0.00027397,3]
[367107437,1750662646740,-490.0,0.00027397,3]
[367107439,1750662646749,-407.03,0.00027397,3]
[367107441,1750662646759,-490.0,0.00027397,3]
[367107443,1750662646768,-490.0,0.00027397,3]
[367107445,1750662646777,-490.0,0.00027397,3]
[367107447,1750662646786,-620.28,0.00027397,3]
[367107449,1750662646795,-490.0,0.00027397,3]
[367107451,1750662646805,-280.0,0.00027397,3]
[367107453,1750662646814,-490.0,0.00027397,3]
[367107455,1750662646824,-490.0,0.00027397,3]
[367107457,1750662646833,-490.0,0.00027397,3]
[367107459,1750662646842,-692.18,0.00027397,3]
[367107460,1750662646851,-490.0,0.00027397,3]
[367107462,1750662646863,-583.42,0.00027397,3]
[367107464,1750662646872,-490.0,0.00027397,3]
[367107466,1750662646881,-1382.11,0.00027397,3]
[367107468,1750662646890,-504.1112088,0.00027397,3]
[367107470,1750662646899,-490.0,0.00027397,3]
[367107472,1750662646908,-957.53,0.00027397,3]
[367107474,1750662646919,-1520.85,0.00027397,3]
[367107476,1750662646928,-490.0,0.00027397,3]
[367107478,1750662646938,-852.4,0.00027397,3]
[367107480,1750662646948,-490.0,0.00027397,3]
[367107482,1750662646957,-490.0,0.00027397,3]
[367107484,1750662646967,-490.0,0.00027397,3]
[367107486,1750662646976,-1514.64,0.00027397,3]
[367107488,1750662646986,-490.0,0.00027397,3]
[367107490,1750662646995,-490.0,0.00027397,3]
[367107492,1750662647005,-490.0,0.00027397,3]
[367107494,1750662647015,-490.0,0.00027397,3]
[367107496,1750662647025,-368.73329124,0.00027397,3]
[367107498,1750662647034,-490.0,0.00027397,3]
[367107500,1750662647044,-564.98,0.00027397,3]
[367107502,1750662647054,-621.88,0.00027397,3]
[367107504,1750662647063,-1413.76,0.00027397,3]
[367107506,1750662647072,-490.0,0.00027397,3]
[367107508,1750662647082,-490.0,0.00027397,3]
[367107510,1750662647091,-557.55714341,0.00027397,3]
[367107512,1750662647100,-490.0,0.00027397,3]
[367107514,1750662647110,-643.76,0.00027397,3]
[367107516,1750662647120,-1486.85,0.00027397,3]
[367107518,1750662647129,-490.0,0.00027397,3]
[367107519,1750662647140,-605.57,0.00027397,3]
[367107521,1750662647149,-490.0,0.00027397,3]
[367107523,1750662647158,-765.6,0.00027397,3]
[367107525,1750662647167,-490.0,0.00027397,3]
[367107527,1750662647176,-490.0,0.00027397,3]
[367107529,1750662647185,-635.87,0.00027397,3]
[367107531,1750662647194,-490.0,0.00027397,3]
[367107533,1750662647203,-559.87,0.00027397,3]
[367107535,1750662647213,-521.1,0.00027397,3]
[367107537,1750662647223,-748.29,0.00027397,3]
[367107539,1750662647232,-490.0,0.00027397,3]
[367107541,1750662647241,-702.32,0.00027397,3]
[367107543,1750662647251,-490.0,0.00027397,3]
[367107545,1750662647260,-490.0,0.00027397,3]
[367107547,1750662647269,-490.0,0.00027397,3]
[367107549,1750662647279,-490.0,0.00027397,3]
[367107551,1750662647288,-1437.96,0.00027397,3]
[367107553,1750662647298,-933.29,0.00027397,3]
[367107555,1750662647307,-623.74,0.00027397,3]
[367107556,1750662647316,-1229.23,0.00027397,3]
[367107558,1750662647325,-490.0,0.00027397,3]
[367107560,1750662647334,-492.7443296,0.00027397,3]
[367107562,1750662647344,-1240.62,0.00027397,3]
[367107564,1750662647352,-490.0,0.00027397,3]
[367107566,1750662647361,-490.0,0.00027397,3]
[367107568,1750662647371,-1044.91,0.00027397,3]
[367107570,1750662647380,-490.92,0.00027397,3]
[367107572,1750662647388,-636.16,0.00027397,3]
[367107574,1750662647397,-490.0,0.00027397,3]
[367107576,1750662647406,-490.0,0.00027397,3]
[367107578,1750662647415,-583.46,0.00027397,3]
[367107580,1750662647425,-490.0,0.00027397,3]
[367107582,1750662647435,-1648.05,0.00027397,3]
[367107584,1750662647446,-490.0,0.00027397,3]
[367107586,1750662647455,-1305.95,0.00027397,3]
[367107588,1750662647464,-745.48,0.00027397,3]
[367107589,1750662647473,-476.874568,0.00027397,3]
[367107591,1750662647483,-490.0,0.00027397,3]
[367107593,1750662647492,-1819.02,0.00027397,3]
[367107595,1750662647505,-490.0,0.00027397,3]
[367107597,1750662647514,-490.0,0.00027397,3]
[367107599,1750662647524,-1025.74,0.00027397,3]
[367107601,1750662647533,-490.0,0.00027397,3]
[367107603,1750662647544,-490.0,0.00027397,3]
[367107605,1750662647554,-1801.52,0.00027397,3]
[367107607,1750662647564,-507.64,0.00027397,3]
[367107609,1750662647573,-1776.13,0.00027397,3]
[367107611,1750662647585,-1449.74,0.00027397,3]
[367107613,1750662647594,-803.35,0.00027397,3]
[367107615,1750662647604,-490.0,0.00027397,3]
[367107617,1750662647614,-825.12,0.00027397,3]
[367107619,1750662647623,-490.0,0.00027397,3]
[367107621,1750662647632,-526.12444941,0.00027397,3]
[367107623,1750662647641,-490.0,0.00027397,3]
[367107625,1750662647651,-553.17,0.00027397,3]
[367107634,1750662647779,-490.0,0.00027397,3]
[367107635,1750662647789,-490.0,0.00027397,3]
[367107636,1750662647799,-1184.6,0.00027397,3]
[367107637,1750662647809,-2077.31,0.00027397,3]
[367107638,1750662647818,-490.0,0.00027397,3]
[367107639,1750662647828,-1017.63,0.00027397,3]
[367107640,1750662647837,-494.90934182,0.00027397,3]
[367107641,1750662647846,-903.1,0.00027397,3]
[367107642,1750662647856,-490.0,0.00027397,3]
[367107643,1750662647865,-840.82,0.00027397,3]
[367107644,1750662647874,-1228.76,0.00027397,3]
[367107645,1750662647883,-972.48,0.00027397,3]
[367107646,1750662647892,-490.0,0.00027397,3]
[367107647,1750662647902,-218.77048822,0.00027397,3]
[367107648,1750662647911,-490.0,0.00027397,3]
[367107650,1750662647920,-490.0,0.00027397,3]
[367107652,1750662647930,-490.0,0.00027397,2]
[367107654,1750662647941,-490.0,0.00027397,3]
[367107656,1750662647950,-490.0,0.00027397,3]
[367107658,1750662647960,-485.0817314,0.00027397,3]
[367107660,1750662647970,-490.0,0.00027397,3]
[367107662,1750662647979,-698.82,0.00027397,3]
[367107664,1750662647989,-1683.09,0.00027397,3]
[367107666,1750662647998,-614.18,0.00027397,3]
[367107668,1750662648008,-435.92573366,0.00027397,3]
[367107670,1750662648017,-1068.5,0.00027397,3]
[367107672,1750662648027,-899.45,0.00027397,3]
[367107674,1750662648036,-490.0,0.00027397,3]
[367107676,1750662648046,-1018.31,0.00027397,3]
[367107678,1750662648056,-490.0,0.00027397,3]
[367107680,1750662648065,-490.0,0.00027397,3]
[367107682,1750662648075,-1034.85,0.00027397,3]
[367107684,1750662648084,-490.0,0.00027397,3]
[367107686,1750662648094,-1636.32,0.00027397,3]
[367107688,1750662648104,-490.0,0.00027397,3]
[367107690,1750662648113,-636.43,0.00027397,3]
[367107692,1750662648122,-490.0,0.00027397,3]
[367107694,1750662648132,-514.73,0.00027397,3]
[367107696,1750662648142,-490.0,0.00027397,3]
[367107698,1750662648151,-350.54219908,0.00027397,3]
[367107700,1750662648161,-490.0,0.00027397,3]
[367107702,1750662648171,-490.0,0.00027397,3]
[367107704,1750662648181,-490.0,0.00027397,3]
[367107706,1750662648190,-490.0,0.00027397,3]
[367107708,1750662648200,-1597.54,0.00027397,3]
[367107710,1750662648211,-490.0,0.00027397,3]
[367107712,1750662648220,-490.0,0.00027397,3]
[367107714,1750662648231,-490.0,0.00027397,3]
[367107716,1750662648240,-878.08,0.00027397,3]
[367107718,1750662648250,-490.0,0.00027397,3]
[367107720,1750662648260,-490.0,0.00027397,3]
[367107722,1750662648270,-1226.297,0.00027397,16]
[367107724,1750662648280,-186.668,0.00027397,16]
[367107726,1750662648290,-490.0,0.00027397,3]
[367107728,1750662648300,-490.0,0.00027397,3]
[367107730,1750662648310,-933.44,0.00027397,3]
[367107732,1750662648320,-490.0,0.00027397,3]
[367107734,1750662648331,-490.0,0.00027397,3]
[367107736,1750662648341,-980.14,0.00027397,3]
[367107738,1750662648351,-490.0,0.00027397,3]
[367107740,1750662648360,-1351.29,0.00027397,3]
[367107742,1750662648370,-490.0,0.00027397,3]
[367107744,1750662648380,-490.0,0.00027397,3]
[367107746,1750662648389,-973.74,0.00027397,3]
[367107748,1750662648399,-378.02468836,0.00027397,3]
[367107750,1750662648409,-493.9134681,0.00027397,3]
[367107752,1750662648418,-1021.72,0.00027397,3]
[367107754,1750662648428,-490.0,0.00027397,3]
[367107756,1750662648437,-487.58534114,0.00027397,3]
[367107758,1750662648447,-490.0,0.00027397,3]
[367107760,1750662648456,-2515.92,0.00027397,3]
[367107762,1750662648466,-563.49,0.00027397,3]
[367107764,1750662648475,-490.0,0.00027397,3]
[367107766,1750662648484,-490.0,0.00027397,3]
[367107768,1750662648494,-718.42,0.00027397,3]
[367107770,1750662648506,-490.0,0.00027397,3]
[367107772,1750662648515,-492.42936655,0.00027397,3]
[367107774,1750662648525,-490.0,0.00027397,3]
[367107776,1750662648535,-490.0,0.00027397,3]
[367107778,1750662648544,-433.06627564,0.00027397,3]
[367107780,1750662648554,-490.0,0.00027397,3]
[367107782,1750662648564,-490.0,0.00027397,3]
[367107784,1750662648573,-490.0,0.00027397,3]
[367107786,1750662648582,-763.59,0.00027397,3]
[367107788,1750662648592,-490.0,0.00027397,3]
[367107790,1750662648602,-490.0,0.00027397,3]
[367107792,1750662648611,-490.0,0.00027397,3]
[367107794,1750662648621,-490.0,0.00027397,3]
[367107796,1750662648630,-1171.08,0.00027397,3]
[367107798,1750662648639,-490.0,0.00027397,3]
[367107800,1750662648648,-490.0,0.00027397,3]
[367107802,1750662648658,-491.54217236,0.00027397,3]
[367107804,1750662648667,-490.0,0.00027397,3]
[367107806,1750662648676,-492.73187281,0.00027397,3]
[367107808,1750662648686,-490.0,0.00027397,3]
[367107810,1750662648696,-806.32,0.00027397,3]
[367107812,1750662648705,-1313.3,0.00027397,3]
[367107814,1750662648715,-490.0,0.00027397,3]
[367107816,1750662648725,-490.0,0.00027397,3]
[367107818,1750662648734,-490.0,0.00027397,3]
[367107820,1750662648743,-490.0,0.00027397,3]
[367107822,1750662648752,-490.0,0.00027397,3]
[367107824,1750662648762,-1866.63,0.00027397,3]
[367107826,1750662648772,-783.39,0.00027397,3]
[367107828,1750662648782,-1408.5,0.00027397,3]
[367107830,1750662648792,-760.51,0.00027397,3]
[367107832,1750662648802,-1204.57,0.00027397,3]
[367107834,1750662648812,-640.07,0.00027397,3]
[367107836,1750662648822,-490.0,0.00027397,3]
[367107838,1750662648832,-1615.12,0.00027397,3]
[367107840,1750662648841,-490.0,0.00027397,3]
[367107842,1750662648851,-1113.91,0.00027397,3]
[367107844,1750662648860,-490.0,0.00027397,3]
[367107846,1750662648870,-490.0,0.00027397,3]
[367107848,1750662648880,-490.0,0.00027397,3]
[367107850,1750662648890,-1617.57,0.00027397,3]
[367107852,1750662648899,-490.0,0.00027397,3]
[367107854,1750662648909,-852.31,0.00027397,3]
[367107856,1750662648919,-490.0,0.00027397,3]
[367107858,1750662648929,-490.0,0.00027397,3]
[367107860,1750662648938,-1344.16,0.00027397,3]
[367107862,1750662648947,-1189.28,0.00027397,3]
[367107864,1750662648957,-490.0,0.00027397,3]
[367107866,1750662648966,-490.0,0.00027397,3]
[367107868,1750662648976,-490.0,0.00027397,3]
[367107870,1750662648986,-492.59020818,0.00027397,3]
[367107872,1750662648997,-500.0,0.00027397,3]
[367107874,1750662649007,-500.0,0.00027397,3]
[367107876,1750662649016,-262.38278019,0.00027397,3]
[367107878,1750662649026,-490.45554866,0.00027397,3]
[367107880,1750662649036,-490.0,0.00027397,3]
[367107882,1750662649045,-924.24,0.00027397,3]
[367107884,1750662649056,-496.54569168,0.00027397,3]
[367107886,1750662649065,-490.0,0.00027397,3]
[367107888,1750662649075,-1017.87,0.00027397,3]
[367107890,1750662649085,-1327.65,0.00027397,3]
[367107892,1750662649094,-816.97,0.00027397,3]
[367107894,1750662649103,-490.0,0.00027397,3]
[367107896,1750662649112,-490.0,0.00027397,3]
[367107898,1750662649122,-1505.21,0.00027397,3]
[367107900,1750662649131,-490.47097734,0.00027397,3]
[367107902,1750662649141,-490.0,0.00027397,3]
[367107904,1750662649150,-490.0,0.00027397,3]
[367107906,1750662649159,-490.0,0.00027397,3]
[367107908,1750662649168,-490.0,0.00027397,3]
[367107910,1750662649178,-490.0,0.00027397,3]
[367107912,1750662649187,-490.0,0.00027397,3]
[367107914,1750662649196,-490.0,0.00027397,3]
[367107916,1750662649206,-995.43,0.00027397,3]
[367107918,1750662649215,-490.0,0.00027397,3]
[367107920,1750662649224,-3010.94,0.00027397,2]
[367107922,1750662649234,-236.09972361,0.00027397,3]
[367107923,1750662649243,-490.0,0.00027397,3]
[367107925,1750662649253,-1097.45,0.00027397,3]
[367107927,1750662649262,-490.0,0.00027397,3]
[367107929,1750662649272,-753.53,0.00027397,3]
[367107932,1750662649282,-490.74757322,0.00027397,3]
[367107933,1750662649291,-1037.06,0.00027397,3]
[367107935,1750662649301,-490.0,0.00027397,3]
[367107937,1750662649311,-490.0,0.00027397,3]
[367107939,1750662649320,-490.0,0.00027397,3]
[367107941,1750662649330,-490.0,0.00027397,3]
[367107943,1750662649340,-490.0,0.00027397,3]
[367107945,1750662649350,-490.0,0.00027397,3]
[367107947,1750662649359,-490.0,0.00027397,3]
[367107949,1750662649371,-490.0,0.00027397,3]
[367107951,1750662649380,-1995.53,0.00027397,3]
[367107953,1750662649390,-490.0,0.00027397,3]
[367107955,1750662649400,-490.0,0.00027397,3]
[367107957,1750662649409,-660.48,0.00027397,3]
[367107959,1750662649419,-490.0,0.00027397,3]
[367107961,1750662649435,-490.0,0.00027397,3]
[367107963,1750662649449,-490.0,0.00027397,3]
[367107965,1750662649458,-752.2,0.00027397,3]
[367107967,1750662649467,-490.0,0.00027397,3]
[367107969,1750662649477,-490.0,0.00027397,3]
[367107971,1750662649486,-490.0,0.00027397,3]
[367107973,1750662649496,-490.0,0.00027397,3]
[367107975,1750662649508,-1341.44,0.00027397,3]
[367107977,1750662649517,-271.0882388,0.00027397,3]
[367107979,1750662649527,-490.0,0.00027397,3]
[367107981,1750662649536,-850.05,0.00027397,3]
[367107983,1750662649546,-490.0,0.00027397,3]
[367107985,1750662649556,-581.79,0.00027397,3]
[367107987,1750662649566,-507.29,0.00027397,3]
[367107989,1750662649576,-2153.23,0.00027397,3]
[367107991,1750662649587,-557.61,0.00027397,3]
[367107993,1750662649597,-490.0,0.00027397,3]
[367107995,1750662649606,-572.59,0.00027397,3]
[367107997,1750662649615,-490.0,0.00027397,3]
[367107999,1750662649624,-490.0,0.00027397,3]
[367108000,1750662649634,-490.0,0.00027397,3]
[367108001,1750662649643,-490.0,0.00027397,3]
[367108002,1750662649653,-493.23181421,0.00027397,3]
[367108003,1750662649663,-490.0,0.00027397,3]
[367108004,1750662649672,-490.0,0.00027397,3]
[367108005,1750662649681,-490.0,0.00027397,3]
[367108006,1750662649691,-490.0,0.00027397,3]
[367108007,1750662649700,-490.91036417,0.00027397,3]
[367108008,1750662649710,-490.0,0.00027397,3]
[367108009,1750662649720,-490.9275877,0.00027397,3]
[367108010,1750662649730,-490.0,0.00027397,3]
[367108011,1750662649739,-2413.05,0.00027397,3]
[367108012,1750662649749,-490.0,0.00027397,3]
[367108013,1750662649758,-490.0,0.00027397,3]
[367108014,1750662649768,-490.0,0.00027397,3]
[367108015,1750662649778,-490.0,0.00027397,3]
[367108016,1750662649788,-566.43,0.00027397,3]
[367108017,1750662649798,-490.0,0.00027397,3]
[367108018,1750662649808,-1348.78,0.00027397,3]
[367108019,1750662649817,-2316.4,0.00027397,3]
[367108020,1750662649827,-494.92073987,0.00027397,3]
[367108021,1750662649837,-490.0,0.00027397,3]
[367108022,1750662649847,-1609.27,0.00027397,3]
[367108023,1750662649856,-181.92340943,0.00027397,3]
[367108024,1750662649866,-490.0,0.00027397,3]
[367108025,1750662649875,-569.99,0.00027397,3]
[367108026,1750662649884,-490.0,0.00027397,3]
[367108027,1750662650201,-490.0,0.00027397,3]
[367108028,1750662650215,-490.0,0.00027397,3]
[367108029,1750662650225,-402.97408195,0.00027397,3]
[367108030,1750662650235,-490.0,0.00027397,3]
[367108031,1750662650245,-490.0,0.00027397,3]
[367108032,1750662650255,-861.6,0.00027397,3]
[367108033,1750662650264,-490.0,0.00027397,3]
[367108034,1750662650273,-2663.87,0.00027397,3]
[367108035,1750662650283,-491.37483275,0.00027397,3]
[367108036,1750662650292,-731.27,0.00027397,3]
[367108037,1750662650302,-490.47123976,0.00027397,3]
[367108038,1750662650313,-490.0,0.00027397,3]
[367108040,1750662650322,-490.0,0.00027397,3]
[367108041,1750662650332,-1052.0,0.00027397,3]
[367108043,1750662650342,-560.0,0.00027397,3]
[367108045,1750662650351,-490.0,0.00027397,3]
[367108047,1750662650361,-490.0,0.00027397,3]
[367108048,1750662650371,-1117.5,0.00027397,3]
[367108049,1750662650380,-490.0,0.00027397,3]
[367108050,1750662650390,-921.04,0.00027397,3]
[367108051,1750662650400,-490.0,0.00027397,3]
[367108052,1750662650411,-490.0,0.00027397,3]
[367108053,1750662650420,-600.11,0.00027397,3]
[367108054,1750662650430,-783.55,0.00027397,3]
[367108055,1750662650439,-490.0,0.00027397,3]
[367108056,1750662650449,-490.0,0.00027397,3]
[367108057,1750662650459,-492.65034899,0.00027397,3]
[367108058,1750662650468,-785.27,0.00027397,3]
[367108059,1750662650477,-1688.41,0.00027397,3]
[367108060,1750662650487,-595.61,0.00027397,3]
[367108061,1750662650497,-490.0,0.00027397,3]
[367108062,1750662650510,-1726.17,0.00027397,3]
[367108063,1750662650519,-950.58,0.00027397,3]
[367108064,1750662650528,-490.0,0.00027397,3]
[367108065,1750662650538,-490.0,0.00027397,3]
[367108066,1750662650547,-1953.41,0.00027397,3]
[367108067,1750662650557,-490.0,0.00027397,3]
[367108068,1750662650567,-490.0,0.00027397,3]
[367108069,1750662650577,-490.0,0.00027397,3]
[367108070,1750662650586,-490.0,0.00027397,3]
[367108071,1750662650596,-603.07,0.00027397,3]
[367108072,1750662650605,-490.0,0.00027397,3]
[367108073,1750662650615,-1456.32,0.00027397,3]
[367108074,1750662650624,-1698.32,0.00027397,3]
[367108075,1750662650633,-501.63,0.00027397,3]
[367108076,1750662650643,-490.0,0.00027397,3]
[367108077,1750662650652,-221.38270789,0.00027397,3]
[367108078,1750662650662,-490.0,0.00027397,3]
[367108079,1750662650672,-490.0,0.00027397,3]
[367108080,1750662650687,-490.0,0.00027397,3]
[367108081,1750662650697,-490.0,0.00027397,3]
[367108082,1750662650707,-490.0,0.00027397,3]
[367108083,1750662650716,-1007.06,0.00027397,3]
[367108084,1750662650726,-1681.01,0.00027397,3]
[367108085,1750662650736,-490.0,0.00027397,3]
[367108086,1750662650745,-1708.4,0.00027397,3]
[367108087,1750662650755,-490.0,0.00027397,3]
[367108088,1750662650764,-873.29,0.00027397,3]
[367108089,1750662650774,-490.0,0.00027397,3]
[367108090,1750662650784,-490.0,0.00027397,3]
[367108091,1750662650794,-490.0,0.00027397,3]
[367108092,1750662650804,-1098.59,0.00027397,3]
[367108093,1750662650814,-1944.53,0.00027397,3]
[367108094,1750662650824,-490.0,0.00027397,3]
[367108095,1750662650833,-490.0,0.00027397,3]
[367108096,1750662650844,-490.0,0.00027397,3]
[367108097,1750662650854,-2433.81,0.00027397,3]
[367108098,1750662650863,-490.92239133,0.00027397,3]
[367108099,1750662650873,-1247.14,0.00027397,3]
[367108100,1750662650883,-501.38,0.00027397,3]
[367108101,1750662650892,-750.42,0.00027397,3]
[367108102,1750662650901,-490.55514406,0.00027397,3]
[367108103,1750662650911,-490.0,0.00027397,3]
[367108104,1750662650920,-577.0,0.00027397,3]
[367108105,1750662650931,-490.0,0.00027397,3]
[367108106,1750662650941,-490.0,0.00027397,3]
[367108107,1750662650951,-662.45,0.00027397,3]
[367108108,1750662650960,-490.0,0.00027397,3]
[367108109,1750662650970,-491.71436548,0.00027397,3]
[367108110,1750662650979,-490.0,0.00027397,3]
[367108111,1750662650989,-1551.77,0.00027397,3]
[367108112,1750662650999,-490.0,0.00027397,3]
[367108113,1750662651008,-290.0,0.00027397,3]
[367108114,1750662651018,-490.0,0.00027397,3]
[367108115,1750662651028,-1650.44,0.00027397,3]
[367108117,1750662651037,-490.0,0.00027397,3]
[367108118,1750662651047,-703.59,0.00027397,3]